Cogmind - Beta 17.1 @@@ ROGUE MODE // 2026.09.14 @ 22:57:58 Player: Ethranok Result: Destroyed by S-27 Virus with Autogun Performance ------------- Evolutions (3) 1500 Regions Visited (8) 1600 Robots Destroyed (172) 860 Value Destroyed (5619) 5619 Prototype IDs (29) 580 Alien Tech Used (0) 0 Bonus (1192) 1192 TOTAL SCORE: 11351 Bonus ------- High Alert Combat Kills 864 Follower Combat Kills 28 Aligned with FarCom 300 Cogmind --------- Core Integrity 0/700 Matter 39/300 Energy 193/310 System Corruption 6% Temperature Cool (0) Movement Core (900) Ox17 Location -7/Lower Caves Parts ------- > --- POWER (1) -------- Cooled Deuterium Engine > --- PROPULSION (4) --- (None) > --- UTILITY (6) ------ High-capacity Storage Unit Advanced Targeting Computer ECM Suite > --- WEAPON (2) ------- (None) > --- INVENTORY (20) --- Cryofiber Web Cargo Storage Unit High-capacity Matter Pod (0) Matter Filter Transmission Jammer System Restoration Module YOLO Cannon Flak Cannon Rocket Array Rocket Array Heavy Flail Peak State ------------ > --- POWER ------------ Cooled Deuterium Engine > --- PROPULSION ------- Armored Treads Armored Treads Armored Treads Armored Treads > --- UTILITY ---------- High-capacity Storage Unit Improved Signal Interpreter Advanced Targeting Computer Hardened Heavy Armor Plating Hacking Suite > --- WEAPON ----------- Gauss Cannon Gauss Cannon > --- INVENTORY -------- Micro Nuclear Core Cryofiber Web Cargo Storage Unit High-capacity Matter Pod Matter Filter Transmission Jammer ECM Suite Hardened Medium Armor Plating Hardened Heavy Armor Plating Hardlight Generator System Restoration Module YOLO Cannon Flak Cannon Gauss Cannon Rocket Array Rocket Array Heavy Flail [Rating: 50] Favorites ----------- Power Cooled Deuterium Engine Engine Cooled Deuterium Engine Power Core Light Nuclear Core Propulsion Armored Treads Treads Armored Treads Wheel Wheel Utility High-capacity Storage Unit Device ECM Suite Storage High-capacity Storage Unit Processor Advanced Targeting Computer Hackware Hacking Suite Protection Hardened Heavy Armor Plating Weapon Gauss Cannon Energy Cannon YOLO Cannon Ballistic Gun Assault Rifle Ballistic Cannon Gauss Cannon Launcher Rocket Launcher Special Weapon Mining Laser Impact Weapon Heavy Flail Build | -11 -10 -10 -10 -9 -8 -7 -7 -7 ------- Run | Yrd Mat Min Exi Min Mat Fac Low Low Slots Evolved 6 | . . . . . 4 2 . . Power . | . . . . . . . . . Propulsion 2 | . . . . . 1 1 . . Utility 4 | . . . . . 3 1 . . Weapon . | . . . . . . . . . Parts Attached 80 | 6 6 9 . 4 28 24 3 . Power 11 | 1 1 2 . 1 1 4 1 . Engine 7 | 1 1 2 . . . 2 1 . Core 4 | . . . . 1 1 2 . . Reactor . | . . . . . . . . . Propulsion 24 | 2 . 5 . 1 12 3 1 . Treads 17 | 2 . 3 . . 8 3 1 . Leg . | . . . . . . . . . Wheel 7 | . . 2 . 1 4 . . . Hover . | . . . . . . . . . Flight . | . . . . . . . . . Utility 18 | 1 2 . . . 4 11 . . Device 4 | . . . . . . 4 . . Storage 2 | 1 1 . . . . . . . Processor 4 | . 1 . . . 1 2 . . Hackware 2 | . . . . . . 2 . . Protection 6 | . . . . . 3 3 . . Artifact . | . . . . . . . . . Weapon 27 | 2 3 2 . 2 11 6 1 . Energy Gun . | . . . . . . . . . Energy Cannon 1 | . . . . 1 . . . . Ballistic Gun 5 | 2 . . . . 2 1 . . Ballistic Cannon 16 | . 3 1 . 1 6 4 1 . Launcher 3 | . . 1 . . 1 1 . . Special Weapon 1 | . . . . . 1 . . . Impact Weapon 1 | . . . . . 1 . . . Slashing Weapon . | . . . . . . . . . Piercing Weapon . | . . . . . . . . . Special Melee Weapon . | . . . . . . . . . Unidentified Prototypes 4 | . . . . . 2 2 . . Parts Lost 35 | . . 5 . 4 2 11 10 3 Power 4 | . . 1 . 1 . 1 1 . Propulsion 14 | . . 3 . 1 1 4 5 . Utility 9 | . . . . . . 5 3 1 Weapon 8 | . . 1 . 2 1 1 1 2 Highest Loss Streak 9 | . . 2 . 3 2 5 9 2 To Critical Strikes . | . . . . . . . . . Average Backups 15 | 2 16 18 18 17 16 15 13 11 Power . | . 1 1 1 . 1 . . . Propulsion . | . . . 1 1 1 . . . Utility 6 | . 3 6 7 7 7 8 7 6 Weapon 7 | . 11 10 9 8 6 6 5 5 Tool/Special . | . . . . . . . . . Unused Backups 18 | . . 3 . . 6 3 . 6 Power 1 | . . . . . 1 . . . Propulsion 3 | . . . . . 3 . . . Utility 9 | . . 1 . . 1 1 . 6 Weapon 5 | . . 2 . . 1 2 . . Tool/Special . | . . . . . . . . . Average Slot Usage (%) 84 | . 93 97 100 97 86 91 63 51 Engine 6 | . 14 13 14 9 . 3 6 7 Core 2 | . . . . 4 9 3 . . Treads 21 | . 28 24 28 19 21 27 11 . Wheel 1 | . . 1 . 7 5 . . . Device 2 | . . . . . . 3 7 7 Storage 9 | . 14 14 14 14 9 7 7 7 Processor 13 | . 7 14 14 14 15 16 10 7 Hackware 1 | . . . . . . 4 . . Protection 4 | . . . . . 8 7 2 5 Ballistic Cannon 16 | . 25 21 14 26 14 11 14 14 Launcher 1 | . . 7 14 . . . . . Peak Build Rating 50 | 6 9 12 14 25 37 50 46 31 Average Rating 28 | 4 7 9 13 12 29 43 31 29 On Entrance 17 | . 6 9 12 14 13 37 45 24 Avg Prop Armor Cover (%) 6 | . . . . . . 6 . . Naked Turns . | . . . . . . . . . Heaviest Build 90 | 14 51 52 52 52 76 90 87 87 Greatest Support 80 | 40 40 40 40 40 69 80 80 3 Greatest Overweight (x) 28 | . 1 2 1 2 3 4 22 28 Average Overweight (x) 1 | . . 1 1 1 . . 6 26 Largest Inventory Capacity 20 | 8 20 20 20 20 20 20 20 20 Average Capacity 19 | 7 18 20 20 20 20 20 20 20 Most Carried 20 | 5 20 20 20 20 20 20 18 13 Average Carried 18 | 1 16 19 19 19 19 19 15 13 Final Capacity 20 | 8 20 20 20 20 20 20 20 20 Final Carried 20 | 2 20 20 20 19 20 17 15 13 Class Distribution -------------------- 99% | Mutant Dominant Class ---------------- Mutant | -10/Materials Mutant | -10/Mines Mutant | -10/Exiles Mutant | -9/Mines Mutant | -8/Materials Mutant | -7/Factory Mutant | -7/Lower Caves Mutant | -7/Lower Caves Resources | -11 -10 -10 -10 -9 -8 -7 -7 -7 ----------- Run | Yrd Mat Min Exi Min Mat Fac Low Low Matter Collected 6187 | 163 766 329 . 195 1144 2877 622 91 Remotely . | . . . . . . . . . Salvage Created 4673 | . 758 237 . 119 640 2374 387 158 Parts 219 | . 41 16 . 11 45 74 23 9 Haulers Intercepted 5 | . 2 . . . 1 2 . . Recyclers Shooed 10 | . 4 . . . . 6 . . Parts Field Recycled . | . . . . . . . . . Retrieved Matter . | . . . . . . . . . Parts Self-Destructed 31 | . . . . . . . 22 9 Prevented 1 | . . . . . . . 1 . Parts Restored . | . . . . . . . . . Kills | -11 -10 -10 -10 -9 -8 -7 -7 -7 ------- Run | Yrd Mat Min Exi Min Mat Fac Low Low Combat Hostiles Destroyed 133 | . 14 17 . 4 19 54 20 5 Melee 4 | . . 1 . . . 3 . . Guns 3 | . . . . . 3 . . . Cannons 99 | . 14 8 . 3 16 36 17 5 AOE 22 | . . 8 . . . 11 3 . Classes Destroyed 19 | . 6 4 . 1 1 5 2 . Worker 11 | . . 2 . 1 3 5 . . Builder 2 | . . . . 1 . 1 . . Tunneler 1 | . . . . . . 1 . . Hauler 5 | . 2 . . . 1 2 . . Recycler 16 | . 5 1 . . 1 9 . . Minesweeper 1 | . . . . . . . 1 . Mechanic 1 | . . . . . . 1 . . Operator 3 | . 1 . . . . 2 . . Watcher 9 | . 3 . . . 2 4 . . Swarmer 29 | . 6 3 . . 8 4 7 1 Grunt 52 | . 8 . . 3 3 27 7 4 Brawler 2 | . . . . . . . 2 . Duelist 2 | . . . . . . 2 . . Protector 1 | . . . . . . 1 . . Sentry 12 | . . 2 . . 6 4 . . Demolisher 2 | . . 2 . . . . . . Hunter 9 | . . . . . 2 4 3 . Programmer 13 | . . . . . . 12 1 . Assembled 10 | . . 10 . . . . . . Best Kill Streak 8 | . 5 7 . 3 8 7 5 4 Combat Bots Only 6 | . 3 6 . 3 4 6 5 4 Max Kills in Single Turn 5 | . 1 2 . 1 2 5 2 1 Gunslinging . | . . . . . . . . . Exploded 5 | . . 2 . . . 5 2 . Melee 1 | . . 1 . . . 1 . . Uniques/NPCs Destroyed 1 | . . . . 1 . . . . YI-UF0 (-9/Mines) Combat | -11 -10 -10 -10 -9 -8 -7 -7 -7 -------- Run | Yrd Mat Min Exi Min Mat Fac Low Low Hostile Shots Fired 914 | . 69 44 . 26 100 446 187 42 Missed 279 | . 20 8 . 5 32 145 55 14 Hits 635 | . 49 36 . 21 68 301 132 28 Melee 14 | . . 5 . . . 6 3 . Projectile 621 | . 49 31 . 21 68 295 129 28 AOE 16 | . . 5 . 11 . . . . Critical Strikes 15 | . 1 . . . 2 7 5 . Part Disruptions 2 | . . . . . . 2 . . Damage Taken 9469 | . 503 650 . 499 778 4487 2110 442 Core 1087 | . 113 30 . 84 146 337 270 107 Absorbed by Shields 348 | . . . . . . 252 96 . Redirected to Shielding 42 | . . . . . . 42 . . Regen/Repaired (Parts) 962 | . 37 . . . . 925 . . Core Remaining (%) 60 | 100 . . . 9 73 . . . Volleys Fired 398 | . 59 31 . 15 75 156 51 11 Largest 2 | . 2 2 . 2 2 2 2 2 Hottest 130 | . 60 60 . 100 130 90 100 80 Shots Fired 743 | . 118 48 . 27 139 298 90 23 Gun 13 | . . . . . 13 . . . Cannon 702 | . 118 40 . 24 118 290 89 23 Launcher 20 | . . 8 . 3 . 8 1 . Special 8 | . . . . . 8 . . . Kinetic 711 | . 118 40 . 23 131 290 86 23 Thermal 12 | . . . . 1 8 . 3 . Explosive 20 | . . 8 . 3 . 8 1 . Electromagnetic . | . . . . . . . . . Robot Hit Streak 15 | . 6 9 . 8 8 15 15 4 Robot Miss Streak 7 | . 4 3 . 3 7 6 4 4 Penetration Max 1 | . . . . . . 1 . . Secondary Targets . | . . . . . . . . . Shots Hit Robots 467 | . 57 29 . 16 74 218 63 10 Core Hits 296 | . 27 28 . 7 44 145 39 6 Critical Kills 2 | . . . . 1 1 . . . Critical Parts Destroyed 7 | . . . . . . 7 . . Critical Strikes 41 | . 5 . . 2 4 21 9 . Meltdown 1 | . . . . 1 . . . . Destroy 1 | . . . . . 1 . . . Blast 32 | . 5 . . 1 3 14 9 . Smash 7 | . . . . . . 7 . . Melee Attacks 82 | . . . . . 14 68 . . Impact 82 | . . . . . 14 68 . . Slashing . | . . . . . . . . . Piercing . | . . . . . . . . . Sneak Attacks 7 | . . . . . 1 6 . . Combat Hostiles . | . . . . . . . . . Follow-up Attacks . | . . . . . . . . . Damage Inflicted 15701 | . 1067 912 . 421 1516 9095 2346 344 Guns 94 | . . . . . 94 . . . Cannons 10965 | . 1028 427 . 341 1239 5597 1989 344 Explosions 2859 | . . 443 . 75 . 1984 357 . Melee 1671 | . . . . . 180 1491 . . Ramming 112 | . 39 42 . 5 3 23 . . Kinetic 10626 | . 1028 427 . 244 1333 5597 1653 344 Thermal 518 | . . . . 97 . . 421 . Explosive 2674 | . . 443 . 75 . 1884 272 . Electromagnetic 100 | . . . . . . 100 . . Impact 1671 | . . . . . 180 1491 . . Slashing . | . . . . . . . . . Piercing . | . . . . . . . . . Highest Corruption 6 | . . . . . . 2 6 6 Average Corruption 3 | . . . . . . 1 4 6 Corruption Purged 6 | . . . . . . 6 . . Corruption Blocked 8 | . . . . . . 8 . . Effects 109 | . . . . . . 10 72 27 Message Errors 23 | . . . . . . 3 11 9 Matter Fused 26 | . . . . . . 3 18 5 Heat Flow Errors 16 | . . . . . . 2 12 2 Energy Discharges 21 | . . . . . . . 15 6 Parts Rejected 1 | . . . . . . . 1 . Data Loss (minor) 10 | . . . . . . 1 8 1 Data Loss (major) 4 | . . . . . . . 3 1 Misfires 3 | . . . . . . . 1 2 Alerts 3 | . . . . . . . 2 1 Weapon Failures 2 | . . . . . . 1 1 . Overload Shots . | . . . . . . . . . Overflow Damage 959 | . . 10 . 25 22 701 196 5 Projectiles 301 | . . . . 21 2 136 137 5 Explosions 94 | . . 10 . 4 . 21 59 . Melee 564 | . . . . . 20 544 . . Knockbacks 114 | . 17 3 . 5 18 57 12 2 Impact 8 | . 1 . . . 1 6 . . Kinetic 101 | . 14 3 . 5 17 48 12 2 Secondary 5 | . 2 . . . . 3 . . Self-Inflicted Damage 356 | . . 30 . 21 . 189 116 . Shots 12 | . . 1 . 1 . 5 5 . Rammed 14 | . 5 4 . 1 1 3 . . Targets Rammed 16 | . 5 5 . 1 1 4 . . Kicked . | . . . . . . . . . Crushed 2 | . . 1 . . . 1 . . Highest Temperature 408 | . 60 54 . 54 195 408 294 216 Average Temperature 76 | . 24 34 . 16 38 94 97 62 Received Heat Transfer 2402 | . 183 83 . 57 126 1163 709 81 Effects 2 | . . . . . . 2 . . Shutdowns 1 | . . . . . . 1 . . Damage (minor) 1 | . . . . . . 1 . . Siege Activations . | . . . . . . . . . Martial Activations . | . . . . . . . . . Shielding Activations . | . . . . . . . . . Robots Disrupted . | . . . . . . . . . Combat Hostiles . | . . . . . . . . . Robots Corrupted 6 | . . . . . . 6 . . Combat Hostiles 4 | . . . . . . 4 . . Parts Fried 10 | . . . . . 1 9 . . Impact Corruptions 19 | . . . . . 1 18 . . Robots Melted 1 | . . . . 1 . . . . Combat Hostiles 1 | . . . . 1 . . . . Parts Melted . | . . . . . . . . . Heat Transferred 480 | . . . . 80 . . 400 . Parts Sabotaged . | . . . . . . . . . Parts Stolen . | . . . . . . . . . Parts Stripped . | . . . . . . . . . Power Chain Reactions 1 | . . . . . . 1 . . Alert | -11 -10 -10 -10 -9 -8 -7 -7 -7 ------- Run | Yrd Mat Min Exi Min Mat Fac Low Low Maximum Alert Level 4 | . . . . . . 4 . . Low Security (%) 71 | 100 100 100 . 100 100 37 . . Level 1 6 | . . . . . . 14 . . Level 2 4 | . . . . . . 9 . . Level 3 11 | . . . . . . 24 . . Level 4 6 | . . . . . . 14 . . Level 5 . | . . . . . . . . . High Security . | . . . . . . . . . Max Security . | . . . . . . . . . Peak Influence 1490 | . 87 77 . 95 145 1490 . . Initial 60 | . . 12 . . . 60 . . Average 240 | . 36 10 . 20 39 504 . . Influence Increases 4348 | . 463 236 . 241 676 2142 455 135 Destroy 0b10 Robot/C 2500 | . 280 140 . 140 380 1060 400 100 Destroy 0b10 Robot/NC 250 | . 55 15 . 10 35 130 5 . Destroy Leader 578 | . 70 20 . 20 116 282 50 20 Allied During Kill 14 | . . . . 14 . . . . Successful Hack 156 | . 24 . . . 38 94 . . Disable Machine 255 | . 15 15 . . 30 195 . . Destroy Structure 250 | . 4 46 . 12 17 171 . . Partial Spotted 15 | . . . . . . 15 . . Lose Combat Pursuer 330 | . 15 . . 45 60 195 . 15 Influence Decreases 4153 | . 430 269 . 241 541 787 1379 506 Entered New Map 756 | . . 21 . . . 75 552 108 Time Decay 3079 | . 430 208 . 223 521 602 727 368 Lost Part 318 | . . 40 . 18 20 110 100 30 Squads Dispatched 34 | . 3 . . . 4 27 . . Investigation 16 | . 2 . . . 2 12 . . Extermination 10 | . . . . . . 10 . . Reinforcement 4 | . 1 . . . 2 1 . . Assault 4 | . . . . . . 4 . . Garrison . | . . . . . . . . . Intercept . | . . . . . . . . . Searches Triggered . | . . . . . . . . . Construction Impeded . | . . . . . . . . . Haulers Reinforced 1 | . . . . . . 1 . . Active Scanning Responses . | . . . . . . . . . Cargo Convoy Interrupts . | . . . . . . . . . Stealth | -11 -10 -10 -10 -9 -8 -7 -7 -7 --------- Run | Yrd Mat Min Exi Min Mat Fac Low Low Distress Signals 7 | . 2 1 . 1 1 2 . . Communications Jammed . | . . . . . . . . . Distress Signals . | . . . . . . . . . Times Spotted 202 | . 23 18 . 10 31 86 26 8 Peak Tracking Total 10 | . 3 3 . 4 5 10 9 4 Tactical Retreats 16 | . 1 1 . 1 2 6 4 1 ECM-based Alert Blocks 8 | . . . . . . 1 7 . Traps | -11 -10 -10 -10 -9 -8 -7 -7 -7 ------- Run | Yrd Mat Min Exi Min Mat Fac Low Low Traps Triggered 5 | . 2 . . . 1 2 . . Indirectly . | . . . . . . . . . Trap Hack Attempts . | . . . . . . . . . Triggered . | . . . . . . . . . Disarmed . | . . . . . . . . . Reprogrammed . | . . . . . . . . . Reused . | . . . . . . . . . Traps Extracted . | . . . . . . . . . Installed . | . . . . . . . . . Triggered . | . . . . . . . . . Machines | -11 -10 -10 -10 -9 -8 -7 -7 -7 ---------- Run | Yrd Mat Min Exi Min Mat Fac Low Low Machines Disabled 18 | . 2 1 . . 2 13 . . Max in Single Turn 2 | . 1 1 . . 1 2 . . Garrison Access 3 | . . . . . 1 2 . . Machines Repaired . | . . . . . . . . . Machines Dismantled . | . . . . . . . . . Machines Sabotaged . | . . . . . . . . . Overloaded Fab Kills . | . . . . . . . . . Hacking | -11 -10 -10 -10 -9 -8 -7 -7 -7 --------- Run | Yrd Mat Min Exi Min Mat Fac Low Low Machines Accessed 43 | . 10 . 1 1 8 22 1 . Terminals 22 | . 7 . . . 5 9 1 . Fabricators 4 | . . . . . . 4 . . Repair Stations 4 | . 1 . . . . 3 . . Recycling Units 5 | . 2 . . . 2 1 . . Scanalyzers 3 | . . . . . . 3 . . Garrison Access 3 | . . . . . 1 2 . . Total Hacks 129 | . 29 . 1 1 31 66 1 . Successful 76 | . 17 . 1 1 18 38 1 . Failed 52 | . 11 . . . 13 28 . . Catastrophic 9 | . 2 . . . 2 5 . . Database Lockouts 1 | . 1 . . . . . . . Manual 68 | . 19 . 1 . 22 26 . . Terminals 70 | . 19 . . . 23 27 1 . Fabricators 11 | . . . . . . 11 . . Repair Stations 17 | . 4 . . . . 13 . . Recycling Units 13 | . 6 . . . 6 1 . . Scanalyzers 10 | . . . . . . 10 . . Garrison Access 6 | . . . . . 2 4 . . Terminal Hacks 18 | . 3 . 1 1 7 5 1 . Record 1 | . . . . . . . 1 . Part Schematic 2 | . . . . . 2 . . . Robot Analysis 1 | . 1 . . . . . . . Prototype ID Bank 1 | . . . . . 1 . . . Open Door 1 | . . . . 1 . . . . Open DSF 1 | . . . . . . 1 . . Terminal Index 3 | . 1 . . . 1 1 . . Fabricator Index 1 | . . . . . . 1 . . Repair Station Index 1 | . . . . . 1 . . . Locate Traps 1 | . . . . . . 1 . . Registered Components 1 | . 1 . . . . . . . Zone Layout 3 | . . . . . 2 1 . . Proto ID Catalog 1 | . . . 1 . . . . . Fabricator Hacks 4 | . . . . . . 4 . . Load Schematic 3 | . . . . . . 3 . . Build 1 | . . . . . . 1 . . Repair Station Hacks 14 | . 2 . . . . 12 . . Scan Component 7 | . 1 . . . . 6 . . Repair 7 | . 1 . . . . 6 . . Recycling Unit Hacks 10 | . 5 . . . 4 1 . . Process 1 | . 1 . . . . . . . Report Inventory 5 | . 2 . . . 2 1 . . Retrieve Matter 2 | . 1 . . . 1 . . . Retrieve Components 2 | . 1 . . . 1 . . . Scanalyzer 7 | . . . . . . 7 . . Insert Component 3 | . . . . . . 3 . . Analyze 3 | . . . . . . 3 . . Retrieve Study 1 | . . . . . . 1 . . Garrison Access Hacks 3 | . . . . . 1 2 . . Seal Access 3 | . . . . . 1 2 . . Unauthorized Hacks 20 | . 7 . . . 6 7 . . Terminals 20 | . 7 . . . 6 7 . . Botnet 18 | . 6 . . . 5 7 . . Operators 2 | . 1 . . . 1 . . . Fabricators . | . . . . . . . . . Repair Stations . | . . . . . . . . . Recycling Units . | . . . . . . . . . Scanalyzers . | . . . . . . . . . Garrison Access . | . . . . . . . . . Data Cores Recovered . | . . . . . . . . . Used . | . . . . . . . . . Hacking Detections 35 | . 8 . . . 6 21 . . Full Trace Events 16 | . 2 . . . 2 12 . . Feedback Events 1 | . . . . . . 1 . . Hackware Fried 1 | . . . . . . 1 . . Feedback Blocked . | . . . . . . . . . Robot Schematics Acquired . | . . . . . . . . . Robots Built . | . . . . . . . . . Authchips . | . . . . . . . . . Time . | . . . . . . . . . Total Robot Build Rating . | . . . . . . . . . Part Schematics Acquired 4 | . . . . . 2 2 . . Parts Built 2 | . . . . . . 2 . . Authchips . | . . . . . . . . . Time 73 | . . . . . . 73 . . Total Part Build Rating 6 | . . . . . . 6 . . Part Studies Acquired 1 | . . . . . . 1 . . Parts Repaired 7 | . 1 . . . . 6 . . Time 216 | . 26 . . . . 190 . . Parts Recycled . | . . . . . . . . . Recycled Matter 47 | . 47 . . . . . . . Retrieved Matter 265 | . 47 . . . 218 . . . Retrieved Components 3 | . 2 . . . 1 . . . Parts Scanalyzed 3 | . . . . . . 3 . . Part Schematics Acquired 2 | . . . . . . 2 . . Parts Damaged . | . . . . . . . . . Bothacking | -11 -10 -10 -10 -9 -8 -7 -7 -7 ------------ Run | Yrd Mat Min Exi Min Mat Fac Low Low Used RIF Installer . | . . . . . . . . . Robots Hacked . | . . . . . . . . . Non-combat . | . . . . . . . . . Combat . | . . . . . . . . . Robot Hacks Applied . | . . . . . . . . . Relay Couplers Released . | . . . . . . . . . Fabnet Peak Effective % . | . . . . . . . . . Robots Rewired . | . . . . . . . . . Allies Hacked . | . . . . . . . . . Hacks Repelled . | . . . . . . . . . Allies | -11 -10 -10 -10 -9 -8 -7 -7 -7 -------- Run | Yrd Mat Min Exi Min Mat Fac Low Low Total Allies 3 | . . 3 . . . . . . Largest Group 3 | . . 3 3 3 . . . . Highest-Rated Group 40 | . . 40 40 40 . . . . Highest-Rated Ally 16 | . . 16 16 16 . . . . Total Orders . | . . . . . . . . . Ally Attacks 17 | . . . . 17 . . . . Total Damage 209 | . . . . 209 . . . . Kills 4 | . . . . 4 . . . . Allies Corrupted . | . . . . . . . . . Allies Melted . | . . . . . . . . . Intel | -11 -10 -10 -10 -9 -8 -7 -7 -7 ------- Run | Yrd Mat Min Exi Min Mat Fac Low Low Active Infowar (turns) 1902 | . . . . . . 566 1336 . ECM 1902 | . . . . . . 566 1336 . Robot Analysis Total 1 | . 1 . . . . . . . Derelict Logs Recovered 4 | . . 2 . 1 . . 1 . Drone Launches . | . . . . . . . . . Drone Recoveries . | . . . . . . . . . Exploration | -11 -10 -10 -10 -9 -8 -7 -7 -7 ------------- Run | Yrd Mat Min Exi Min Mat Fac Low Low Turns Passed 17685 | 58 2030 1395 900 1063 2329 5524 3533 853 Spaces Moved 6171 | 34 773 556 375 521 960 2156 737 59 Core 255 | 8 . . . . . . 188 59 Treads 5327 | 26 773 487 375 281 680 2156 549 . Legs . | . . . . . . . . . Wheels 589 | . . 69 . 240 280 . . . Hover . | . . . . . . . . . Flight . | . . . . . . . . . Fastest Speed 50 | 50 160 110 240 110 95 170 217 1000 Average Speed 245 | 134 229 229 240 183 192 192 457 1391 Slowest Speed 1450 | 160 240 320 240 320 410 330 1150 1450 Overloaded Moves . | . . . . . . . . . Propulsion Burnouts . | . . . . . . . . . Robots Hopped . | . . . . . . . . . Potential Cave-ins 13 | . . . . 2 3 8 . . Cave-ins Triggered 1 | . . . . . . 1 . . Exploration Rate (%) 62 | 4 98 96 72 78 68 46 81 15 Regions Visited 8 Branch Regions 5 Pre-discovered Areas 1 | . . . . 1 . . . . Known Exits Taken 7 | . 1 1 1 1 1 1 1 . Unknown Exits Taken 1 | 1 . . . . . . . . Scrap Searched 7 | . . 2 . 2 . . 2 1 Spaces Dug 55 | . . . . . 20 35 . . Terrain Destroyed 467 | . . 81 . 38 23 232 86 7 Melee 46 | . . . . . 12 34 . . Projectile 79 | . . 1 . 1 11 39 20 7 AOE 342 | . . 80 . 37 . 159 66 . Terrain Rammed . | . . . . . . . . . Walls Destroyed . | . . . . . . . . . Machines Disabled . | . . . . . . . . . Actions | -11 -10 -10 -10 -9 -8 -7 -7 -7 --------- Run | Yrd Mat Min Exi Min Mat Fac Low Low Total 7813 | 47 907 624 377 596 1267 3113 811 71 Wait 808 | . 37 . . 46 113 608 4 . Move 6163 | 33 772 555 374 520 959 2155 736 59 Hop . | . . . . . . . . . Pick Up 125 | 8 23 13 1 3 36 38 3 . Fast Attach . | . . . . . . . . . Attach 59 | 6 2 5 . 6 11 20 8 1 Detach 8 | . 1 . . 2 1 1 3 . Swap 90 | . 4 7 . 3 28 43 5 . Drop 62 | . 4 8 2 . 29 18 1 . Fire 398 | . 59 31 . 15 75 156 51 11 Melee 82 | . . . . . 14 68 . . Ram 1 | . . . . 1 . . . . Kick . | . . . . . . . . . Crush 15 | . 5 5 . . 1 4 . . Escape Stasis 2 | . . . . . . 2 . . Rewire . | . . . . . . . . . Trap . | . . . . . . . . . Miscellaneous . | . . . . . . . . . Route ------- -11/Scrapyard -10/Materials (discovered 5 exits: *Mat x3 / *Min x2) -10/Mines (discovered 4 exits: *Mat x2 / *Exi / *Sub) -10/Exiles (discovered 2 exits: *Min x2) -9/Mines (discovered 2 exits: *Mat x2) -8/Materials (discovered 2 exits: *Fac x2) -7/Factory (discovered 2 exits: [*Fac] / *Low) -7/Lower Caves -7/Lower Caves History --------- Turn | Location | Event 24 | -11/Scrapyard | Discovered new exit (range 16) 59 | -11/Scrapyard | Entered Materials 313 | -10/Materials | Build established: Mutant 452 | -10/Materials | Discovered new exit (range 15) 997 | -10/Materials | Discovered new exit (range 14) 1066 | -10/Materials | Identified exit to Mines 1133 | -10/Materials | Discovered new exit (range 10) 1173 | -10/Materials | Identified exit to Materials 1190 | -10/Materials | Central database locked down 1366 | -10/Materials | Discovered exit to Mines (range 16) 1612 | -10/Materials | Discovered exit to Materials (range 16) 1719 | -10/Materials | Repaired Utility Shielding 2089 | -10/Materials | Entered Mines 2096 | -10/Mines | Received a Rocket Launcher from a helpful Derelict 2097 | -10/Mines | Learned Materials emergency access door positions 2509 | -10/Mines | Discovered exit to Materials (range 7) 2523 | -10/Mines | Discovered exit to Materials (range 3) 2684 | -10/Mines | Assembled infested the area 2689 | -10/Mines | Assisted by a Guerilla fighting off Assembled 2713 | -10/Mines | Core integrity fell below 50% 2882 | -10/Mines | Discovered new exit (range 6) 2892 | -10/Mines | Identified exit to Subcaves 3315 | -10/Mines | Learned 4 Materials zone layouts 3364 | -10/Mines | Assisted by bots powering up and referring to "LRC-V3" 3474 | -10/Mines | Deemed a non-threat by the Exiles lab entrance 3474 | -10/Mines | Discovered new exit (range 5) 3481 | -10/Mines | Identified exit to Exiles 3484 | -10/Mines | Entered Exiles 3484 | -10/Exiles | Accompanied by 3 allies 3518 | -10/Exiles | Discovered new exit (range 15) 3549 | -10/Exiles | Identified exit to Mines 3602 | -10/Exiles | Met 8R-AWN 3640 | -10/Exiles | Met EX-HEX 3705 | -10/Exiles | Met EX-BIN 3734 | -10/Exiles | Aligned with FarCom system 3736 | -10/Exiles | Given EX-Vault access code 3792 | -10/Exiles | Opened EX-Vault 3812 | -10/Exiles | Found YOLO Cannon 3858 | -10/Exiles | Warned to stay clear of 0b10 Research branches 3933 | -10/Exiles | Met EX-DEC 4041 | -10/Exiles | Discovered exit to Mines (range 14) 4384 | -10/Exiles | Left Exiles lab with YOLO Cannon 4384 | -10/Exiles | Entered Mines 4384 | -9/Mines | Accompanied by 3 allies 4385 | -9/Mines | Learned location of Storage (-9) 4502 | -9/Mines | Found the Drone Emporium 4710 | -9/Mines | Lost 3 allies 4979 | -9/Mines | Discovered new exit (range 16) 4981 | -9/Mines | Learned Materials stockpile data 5012 | -9/Mines | Identified exit to Materials 5070 | -9/Mines | Core integrity fell below 20% 5077 | -9/Mines | Destroyed YI-UF0 5096 | -9/Mines | Discovered exit to Materials (range 9) 5106 | -9/Mines | Lost 3 parts (1p1n1w) 5447 | -9/Mines | Entered Materials 5447 | -8/Materials | Evolved 4 slots: Propulsion x1, Utility x3 5448 | -8/Materials | Identified exit to Factory 6156 | -8/Materials | Found Prototype Launcher 6157 | -8/Materials | Identified Rocket Array 6162 | -8/Materials | Found Rocket Array 7776 | -8/Materials | Entered Factory 7776 | -7/Factory | Evolved 2 slots: Propulsion x1, Utility x1 8559 | -7/Factory | Repaired Arm. Treads 8601 | -7/Factory | Repaired Arm. Treads 8646 | -7/Factory | Repaired Hrd. Heavy Armor Plating 9131 | -7/Factory | Repaired Utility Shielding 9814 | -7/Factory | Discovered new exit (range 14) 9867 | -7/Factory | Identified exit to Lower Caves 10097 | -7/Factory | Crushed by falling debris 10151 | -7/Factory | Lost 5 parts (1p1n2u1w) 11090 | -7/Factory | Hacking Suite fried by hacking feedback 11445 | -7/Factory | Fabricated Arm. Treads (x2) 11526 | -7/Factory | Repaired Gauss Cannon 11549 | -7/Factory | Repaired Hrd. Heavy Armor Plating 12176 | -7/Factory | First assault squad dispatched 12227 | -7/Factory | Allied Derelicts emerged from ambush trap array 12442 | -7/Factory | Discovered new exit (range 16) 13300 | -7/Factory | Entered Lower Caves 13356 | -7/Lower Caves | Spotted B-75 Beast 13401 | -7/Lower Caves | Ambushed by research squad 13402 | -7/Lower Caves | Core integrity fell below 50% 13783 | -7/Lower Caves | Learned Factory terminal intel 14280 | -7/Lower Caves | Discovered new exit (range 12) 14316 | -7/Lower Caves | Identified exit to Lower Caves 14653 | -7/Lower Caves | Core integrity fell below 20% 14689 | -7/Lower Caves | Lost 9 parts (1p4n3u1w) 16833 | -7/Lower Caves | Entered another Lower Caves area 17686 | -7/Lower Caves | Destroyed by S-27 Virus with Autogun Last Messages --------------- 17551_ Particle Gun fries itself beyond repair. 17560_ Lgt. Nuclear Core fries itself beyond repair. 17564_ Unknown Leg fries itself beyond repair. 17566_ Particle Gun fries itself beyond repair. 17572_ System corrupted: Heat flow error (+121). 17590_ System corrupted: Energy discharge (-96). 17617_ System corrupted: Energy discharge (-108). 17643_ =RMVSTVSVYTW 17655_ Acquired 29 matter. 17659_ System corrupted: Substantial component data lost. 17666_ S-27 Virus knocked back. 17672_ Slug penetrates Wall. 17672_ Destroyed VTOL Module. 17674_ Gauss Cannon destroyed. 17675_ S-27 Virus destroyed. 17677_ Acquired 26 matter. 17678_ Gauss Cannon destroyed. 17681_ Lgt. Nuclear Core fries itself beyond repair. 17684_ Autogun fries itself beyond repair. 17686_ System corrupted: Energy discharge (-117). Map ----- +----------------------------------------------------+ | | | | | | | | | ?????????????????????????????????????????????????? | | ?????????????????????????????????????????????????? | | ?????????????????????????????????????????????????? | | ?????????????????????????????????????????????????? | | ?????????????????????????????????????????????????? | | ?????????????????????????????????????????????????? | | ?????????????????????????????????????????????????? | | ?????????????????????????????????????????????????? | | ?????????????????????????????????????????????????? | | ?????????????????????????????????????????????????? | | ?????????????????????????????????????????????????? | | ?????????????????????????????????????????????????? | | ?????????????????????????????????????????????????? | | ?????????????????????????????????????????????????? | | ?????????????????????????????????????????????????? | | ????????????????????????????????????????????##???? | | ???????????????????????????????#####??????# ##??? | | ???????????????????????????###?# ##????# ###? | | ?????????????????????????### ### ##??# ? | | ?????????????????????#??## ## ### ""?? | | ??????????????????####%## """"?? | | ?????????????????## s% %@ """?? | | ???????????????# ;; s% " ? | | ???????????????# ##% ;#;# ### "" ??? | | ??????????????????# ??### #?????????? | | ????????????????????????# ##????????? | | ????????????????????????#### #????????? | | ???????????????????????????## ##????????? | | ????????????????????????????## ##?????????? | | ?????????????????????????????## ##??????????# | | ??????????????????????????????### ##????????#### | | ????????????????????????????????# ##???####?## | | ??????????????????????????# #### ###### ### | | ???????????????????????????# | | ???????????????????????????## | | ????????????????????????????## ### ### | | ?????????????????????????????## #?# ##?## | | ??????????????????????????????### #?# #???# | | ????????????????????????????????#### #?# #??## | | ???????????????????????????????????## ##?# ??# | | ????????????????????????????????????####?? ?## | | ?????????????????????????????????????????? #??# | | ????????????????????????????????????????? ###??? | | ?????????????????????????????????????????###?????? | | ?????????????????????????????????????????????????? | | ?????????????????????????????????????????????????? | +----------------------------------------------------+ Best States ------------- Heat Dissipation 34 Energy Generation 18 Energy Capacity 310 Matter Stores 300 Matter Capacity 300 Sight Range 16 Terrain Scan Density 10 ECM Strength 1 Corruption Block 8 Armor Coverage 600 Utility Shielding 33 Evasion (%) 41 Targeting Accuracy 8 Recoil Reduction 4 Offensive Hacking 10 Item Schematics ----------------- Arm. Treads | -8/Materials | Hacked Thermal Generator | -8/Materials | Hacked Hrd. Heavy Armor Plating | -7/Factory | Scanalyzed Hardlight Generator | -7/Factory | Scanalyzed Robot Schematics ------------------ None Fabricated ------------ Arm. Treads | x2 | -7/Factory Repaired ---------- Utility Shielding | 26% | -10/Materials Arm. Treads | 60% | -7/Factory Arm. Treads | 64% | -7/Factory Hrd. Heavy Armor Plating | 61% | -7/Factory Utility Shielding | 72% | -7/Factory Gauss Cannon | 13% | -7/Factory Hrd. Heavy Armor Plating | 48% | -7/Factory Studied --------- Arm. Treads | -7/Factory | Hacked Alien Tech Used ----------------- None Achievements -------------- Ew, Corruption Hey, That's Mine! Quick And Dirty Challenges ------------ None Game ------ Seed ExoskeletonArmageddonSpoofer Manual? 0 Play Time 02:07:28 Cumulative 25.1 hours Start 2026.09.14 @ 20:44:36 End 2026.09.14 @ 22:57:58 Sessions 1 Manual Loads 0 Difficulty Rogue Special Mode None Game No. 35 Rogue 35 Adventurer 0 Explorer 0 Win Type - Total 0 Types 0/0/0/0/0/0/0/0/0/0 Lore% 9 Gallery% 14 Achievement% 16 Wizard Run 0 Options --------- Layout 0 ASCII 0 Keyboard 0 Movement Arrows Keybinds 0 Fullscreen 1 Font 24/Smallcaps Map View 56x25 Zoom Use 55% Tactical HUD 1 Map Filters NONE Filters NONE Steam 1 RUN: 9cdc5576-0baa-4531-bbd2-ba7636502f23